fUSD/lending_fUSD_20260630
["ID","MTS","AMOUNT","RATE_DAILY","PERIOD"]
[426704075,1782751856000,-174.845479,0.000371,30]
[426704070,1782751856000,-174.845479,0.000371,30]
[426704076,1782751856000,-4626.45918,0.000371,30]
[426704052,1782751856000,-151.0,0.000371,30]
[426704050,1782751856000,-257.844655,0.000371,30]
[426704051,1782751856000,-151.0,0.000371,30]
[426704105,1782751856000,-1698.914674,0.000371,30]
[426704054,1782751856000,-257.844655,0.000371,30]
[426704053,1782751856000,-1098.904023,0.000371,7]
[426704057,1782751856000,-1098.904023,0.000371,7]
[426704055,1782751856000,-151.0,0.000371,30]
[426704056,1782751856000,-1098.904023,0.000371,7]
[426704058,1782751856000,-3466.602766,0.000371,28]
[426704063,1782751856000,-151.0,0.000371,30]
[426704060,1782751856000,-3466.602766,0.000371,28]
[426704059,1782751856000,-1098.904023,0.000371,7]
[426704061,1782751856000,-151.0,0.000371,30]
[426704062,1782751856000,-3466.602766,0.000371,28]
[426704064,1782751856000,-151.0,0.000371,30]
[426704071,1782751856000,-4626.45918,0.000371,30]
[426704067,1782751856000,-151.0,0.000371,30]
[426704073,1782751856000,-174.845479,0.000371,30]
[426704066,1782751856000,-151.0,0.000371,30]
[426704065,1782751856000,-3466.602766,0.000371,28]
[426704068,1782751856000,-4626.45918,0.000371,30]
[426704069,1782751856000,-151.0,0.000371,30]
[426704072,1782751856000,-151.0,0.000371,30]
[426704074,1782751856000,-4626.45918,0.000371,30]
[426704078,1782751856000,-412.591009,0.000371,30]
[426704049,1782751856000,-151.0,0.000371,30]
[426704103,1782751856000,-884.780827,0.000371,30]
[426704107,1782751856000,-1170.701462,0.000371,30]
[426704136,1782751856000,-638.758113,0.000371,30]
[426704138,1782751856000,-151.0,0.000371,30]
[426704144,1782751856000,-638.758113,0.000371,30]
[426704145,1782751856000,-416.012806,0.000371,30]
[426704139,1782751856000,-1086.271727,0.000371,30]
[426704143,1782751856000,-1339.114205,0.000371,30]
[426704137,1782751856000,-1339.114205,0.000371,30]
[426704142,1782751856000,-151.0,0.000371,30]
[426704140,1782751856000,-151.0,0.000371,30]
[426704141,1782751856000,-638.758113,0.000371,30]
[426704147,1782751856000,-445.415068,0.000371,30]
[426704146,1782751856000,-487.850007,0.000371,30]
[426704148,1782751856000,-487.850007,0.000371,30]
[426704149,1782751856000,-416.012806,0.000371,30]
[426704150,1782751856000,-1409.637798,0.000371,30]
[426704155,1782751856000,-1409.637798,0.000371,30]
[426704151,1782751856000,-177.308055,0.000371,30]
[426704153,1782751856000,-445.415068,0.000371,30]
[426704154,1782751856000,-487.850007,0.000371,30]
[426704152,1782751856000,-195.663027,0.000371,30]
[426704156,1782751856000,-177.308055,0.000371,30]
[426704160,1782751856000,-487.850007,0.000371,30]
[426704109,1782751856000,-1727.627897,0.000371,30]
[426704157,1782751856000,-416.012806,0.000371,30]
[426704158,1782751856000,-195.663027,0.000371,30]
[426704135,1782751856000,-151.0,0.000371,30]
[426704134,1782751856000,-1086.271727,0.000371,30]
[426704159,1782751856000,-445.415068,0.000371,30]
[426704130,1782751856000,-638.758113,0.000371,30]
[426704131,1782751856000,-151.0,0.000371,30]
[426704108,1782751856000,-151.0,0.000371,30]
[426704104,1782751856000,-204.374075,0.000371,30]
[426704110,1782751856000,-151.0,0.000371,30]
[426704112,1782751856000,-204.374075,0.000371,30]
[426704111,1782751856000,-884.780827,0.000371,30]
[426704114,1782751856000,-1950.334549,0.000371,30]
[426704113,1782751856000,-1698.914674,0.000371,30]
[426704116,1782751856000,-1727.627897,0.000371,30]
[426704115,1782751856000,-1170.701462,0.000371,30]
[426704117,1782751856000,-151.0,0.000371,30]
[426704121,1782751856000,-1339.114205,0.000371,30]
[426704106,1782751856000,-1950.334549,0.000371,30]
[426704119,1782751856000,-884.780827,0.000371,30]
[426704118,1782751856000,-151.0,0.000371,30]
[426704126,1782751856000,-151.0,0.000371,30]
[426704128,1782751856000,-1698.914674,0.000371,30]
[426704132,1782751856000,-151.0,0.000371,30]
[426704129,1782751856000,-1339.114205,0.000371,30]
[426704125,1782751856000,-151.0,0.000371,30]
[426704124,1782751856000,-1727.627897,0.000371,30]
[426704122,1782751856000,-1086.271727,0.000371,30]
[426704133,1782751856000,-151.0,0.000371,30]
[426704123,1782751856000,-1698.914674,0.000371,30]
[426704120,1782751856000,-151.0,0.000371,30]
[426704127,1782751856000,-1086.271727,0.000371,30]
[426704192,1782751857000,-330.319056,0.000371,30]
[426704188,1782751857000,-13409.854609,0.000371,30]
[426704190,1782751857000,-181.957006,0.000371,30]
[426704194,1782751857000,-13409.854609,0.000371,30]
[426704193,1782751857000,-323.695113,0.000371,30]
[426704197,1782751857000,-330.319056,0.000371,30]
[426704199,1782751857000,-323.695113,0.000371,30]
[426704191,1782751857000,-4473.463058,0.000371,30]
[426704195,1782751857000,-345.698737,0.000371,30]
[426704182,1782751857000,-1212.405885,0.000371,30]
[426704213,1782751857000,-1785.489696,0.000371,7]
[426704200,1782751857000,-345.698737,0.000371,30]
[426704201,1782751857000,-323.695113,0.000371,30]
[426704198,1782751857000,-13409.854609,0.000371,30]
[426704203,1782751857000,-345.698737,0.000371,30]
[426704202,1782751857000,-345.698737,0.000371,30]
[426704204,1782751857000,-2000.0,0.000371,7]
[426704205,1782751857000,-203.789796,0.000371,30]
[426704208,1782751857000,-151.0,0.000371,30]
[426704206,1782751857000,-37063.31249122,0.000371,120]
[426704207,1782751857000,-352.124375,0.000371,30]
[426704186,1782751857000,-330.319056,0.000371,30]
[426704196,1782751857000,-4473.463058,0.000371,30]
[426704212,1782751857000,-460.249568,0.000371,7]
[426704170,1782751857000,-222.719142,0.000371,30]
[426704187,1782751857000,-323.695113,0.000371,30]
[426704162,1782751857000,-177.308055,0.000371,30]
[426704164,1782751857000,-195.663027,0.000371,30]
[426704163,1782751857000,-416.012806,0.000371,30]
[426704161,1782751857000,-1409.637798,0.000371,30]
[426704165,1782751857000,-445.415068,0.000371,30]
[426704166,1782751857000,-1409.637798,0.000371,30]
[426704172,1782751857000,-222.719142,0.000371,30]
[426704171,1782751857000,-222.719142,0.000371,30]
[426704169,1782751857000,-151.0,0.000371,30]
[426704173,1782751857000,-222.719142,0.000371,30]
[426704183,1782751857000,-13409.854609,0.000371,30]
[426704168,1782751857000,-177.308055,0.000371,30]
[426704167,1782751857000,-195.663027,0.000371,30]
[426704175,1782751857000,-1212.405885,0.000371,30]
[426704176,1782751857000,-1212.405885,0.000371,30]
[426704177,1782751857000,-181.957006,0.000371,30]
[426704179,1782751857000,-181.957006,0.000371,30]
[426704189,1782751857000,-151.0,0.000371,30]
[426704178,1782751857000,-1212.405885,0.000371,30]
[426704180,1782751857000,-4473.463058,0.000371,30]
[426704181,1782751857000,-330.319056,0.000371,30]
[426704185,1782751857000,-4473.463058,0.000371,30]
[426704174,1782751857000,-151.0,0.000371,30]
[426704211,1782751857000,-380.242634,0.000371,30]
[426704184,1782751857000,-181.957006,0.000371,30]
[426704210,1782751857000,-151.0,0.000371,30]
[426704243,1782751857000,-182.10454,0.000371,30]
[426704244,1782751857000,-151.0,0.000371,30]
[426704248,1782751857000,-846.576963,0.000371,30]
[426704247,1782751857000,-2600.93814,0.000371,30]
[426704240,1782751857000,-151.0,0.000371,30]
[426704246,1782751857000,-9065.942588,0.000371,30]
[426704237,1782751857000,-2600.93814,0.000371,30]
[426704245,1782751857000,-731.718703,0.000371,30]
[426704249,1782751857000,-182.10454,0.000371,30]
[426704254,1782751857000,-9065.942588,0.000371,30]
[426704252,1782751857000,-221.231908,0.000371,30]
[426704253,1782751857000,-731.718703,0.000371,30]
[426704251,1782751857000,-370.593716,0.000371,30]
[426704258,1782751857000,-198.2,0.000371,30]
[426704257,1782751857000,-1164.541181,0.000371,30]
[426704255,1782751857000,-2600.93814,0.000371,30]
[426704256,1782751857000,-846.576963,0.000371,30]
[426704250,1782751857000,-151.0,0.000371,30]
[426704259,1782751857000,-182.10454,0.000371,30]
[426704261,1782751857000,-151.0,0.000371,30]
[426704263,1782751857000,-370.593716,0.000371,30]
[426704262,1782751857000,-221.231908,0.000371,30]
[426704260,1782751857000,-743.095166,0.000371,30]
[426704241,1782751857000,-2600.93814,0.000371,30]
[426704239,1782751857000,-9065.942588,0.000371,30]
[426704209,1782751857000,-352.124375,0.000371,30]
[426704238,1782751857000,-731.718703,0.000371,30]
[426704242,1782751857000,-846.576963,0.000371,30]
[426704214,1782751857000,-527.20396,0.000371,30]
[426704216,1782751857000,-2424.591433,0.000371,30]
[426704217,1782751857000,-380.242634,0.000371,30]
[426704219,1782751857000,-1785.489696,0.000371,7]
[426704222,1782751857000,-2424.591433,0.000371,30]
[426704220,1782751857000,-527.20396,0.000371,30]
[426704221,1782751857000,-352.124375,0.000371,30]
[426704223,1782751857000,-380.242634,0.000371,30]
[426704215,1782751857000,-352.124375,0.000371,30]
[426704224,1782751857000,-460.249568,0.000371,7]
[426704218,1782751857000,-460.249568,0.000371,7]
[426704226,1782751857000,-1785.489696,0.000371,7]
[426704225,1782751857000,-151.0,0.000371,30]
[426704235,1782751857000,-731.718703,0.000371,30]
[426704236,1782751857000,-9065.942588,0.000371,30]
[426704229,1782751857000,-380.242634,0.000371,30]
[426704232,1782751857000,-151.0,0.000371,30]
[426704234,1782751857000,-2424.591433,0.000371,30]
[426704228,1782751857000,-2424.591433,0.000371,30]
[426704231,1782751857000,-460.249568,0.000371,7]
[426704227,1782751857000,-527.20396,0.000371,30]
[426704233,1782751857000,-527.20396,0.000371,30]
[426704230,1782751857000,-1785.489696,0.000371,7]
[426704285,1782751858000,-471.091476,0.00037108,30]
[426704295,1782751858000,-2387.35654291,0.0003715,120]
[426704284,1782751858000,-390.95639,0.00037108,30]
[426704286,1782751858000,-150.0,0.00037125,120]
[426704288,1782751858000,-153.52286243,0.00037125,120]
[426704292,1782751858000,-189.0,0.00037142,11]
[426704291,1782751858000,-2742.33,0.00037137,30]
[426704293,1782751858000,-2336.0,0.00037142,11]
[426704289,1782751858000,-426.72,0.00037137,30]
[426704294,1782751858000,-202.91070771,0.0003715,21]
[426704290,1782751858000,-3592.57,0.00037137,30]
[426704296,1782751858000,-5000.0,0.0003715,7]
[426704297,1782751858000,-5000.0,0.0003715,7]
[426704299,1782751858000,-5000.0,0.0003715,7]
[426704283,1782751858000,-159.998939,0.000371,30]
[426704287,1782751858000,-150.0,0.00037125,120]
[426704282,1782751858000,-151.0,0.000371,30]
[426704268,1782751858000,-743.095166,0.000371,30]
[426704278,1782751858000,-151.0,0.000371,30]
[426704269,1782751858000,-221.231908,0.000371,30]
[426704270,1782751858000,-370.593716,0.000371,30]
[426704264,1782751858000,-846.576963,0.000371,30]
[426704271,1782751858000,-151.0,0.000371,30]
[426704265,1782751858000,-198.2,0.000371,30]
[426704267,1782751858000,-1164.541181,0.000371,30]
[426704266,1782751858000,-182.10454,0.000371,30]
[426704272,1782751858000,-198.2,0.000371,30]
[426704273,1782751858000,-743.095166,0.000371,30]
[426704281,1782751858000,-743.095166,0.000371,30]
[426704274,1782751858000,-1164.541181,0.000371,30]
[426704276,1782751858000,-221.231908,0.000371,30]
[426704275,1782751858000,-370.593716,0.000371,30]
[426704277,1782751858000,-151.0,0.000371,30]
[426704280,1782751858000,-1164.541181,0.000371,30]
[426704279,1782751858000,-198.2,0.000371,30]
[426704301,1782751858000,-5000.0,0.0003715,7]
[426704302,1782751858000,-5000.0,0.0003715,7]
[426704304,1782751858000,-5000.0,0.0003715,7]
[426704325,1782751858000,-233.89,0.00037234,120]
[426704326,1782751858000,-272.0,0.00037251,2]
[426704323,1782751858000,-2387.35654291,0.00037233,120]
[426704324,1782751858000,-167.89655409,0.00037234,22]
[426704327,1782751858000,-631.0,0.00037262,30]
[426704328,1782751858000,-221.66,0.00037266,60]
[426704329,1782751858000,-350.0,0.00037271,44]
[426704330,1782751858000,-2387.35654291,0.00037275,120]
[426704331,1782751858000,-186.08194045,0.00037287,2]
[426704333,1782751858000,-3332.16,0.000373,120]
[426704298,1782751858000,-5000.0,0.0003715,7]
[426704334,1782751858000,-61572.6424939,0.00037312,22]
[426704335,1782751858000,-152.0,0.00023336,2]
[426704336,1782751858000,-216.58458871,0.00029,10]
[426704337,1782751858000,-300.0,0.00033774,2]
[426704320,1782751858000,-150.0,0.00037219,120]
[426704321,1782751858000,-10000.0,0.0003722,60]
[426704332,1782751858000,-572.34641523,0.000373,30]
[426704319,1782751858000,-201.92571592,0.00037219,120]
[426704322,1782751858000,-167.376019,0.00037223,117]
[426704303,1782751858000,-5000.0,0.0003715,7]
[426704307,1782751858000,-5000.0,0.0003715,7]
[426704306,1782751858000,-5000.0,0.0003715,7]
[426704305,1782751858000,-5000.0,0.0003715,7]
[426704300,1782751858000,-5000.0,0.0003715,7]
[426704309,1782751858000,-20000.0,0.00037152,42]
[426704310,1782751858000,-219095.8010665,0.00037152,2]
[426704312,1782751858000,-2336.0,0.00037166,11]
[426704308,1782751858000,-249.401368,0.0003715,30]
[426704311,1782751858000,-5000.0,0.00037155,7]
[426704314,1782751858000,-741.43351889,0.00037183,2]
[426704313,1782751858000,-200.0,0.00037178,10]
[426704316,1782751858000,-2500.0,0.000372,60]
[426704318,1782751858000,-151.83365069,0.00037215,2]
[426704315,1782751858000,-2387.35654291,0.00037191,120]
[426704317,1782751858000,-688.7570379,0.00037211,2]
[426704339,1782751859000,-5507.81518311,0.000371,30]
[426704338,1782751859000,-1232.030575,0.000371,30]
[426704341,1782751925000,-2997.64,0.0002899,10]
[426704340,1782751925000,-908.0,0.00023336,2]
[426704343,1782751925000,-300.0,0.00033774,2]
[426704342,1782751925000,-216.58458871,0.00032,7]
[426704344,1782751925000,-300.0,0.00033774,2]
[426704347,1782751925000,-1151.0,0.0003705,120]
[426704346,1782751925000,-3075.20649908,0.0003705,120]
[426704345,1782751925000,-300.0,0.00033774,2]
[426704349,1782751926000,-38163.14615884,0.0003705,120]
[426704348,1782751926000,-1683.27198113,0.0003705,120]
[426704350,1782751926000,-2738.58217711,0.0003705,120]
[426704354,1782751926000,43.50699091,1.8e-06,2]
[426704352,1782751926000,200.0,5e-05,30]
[426704353,1782751926000,156.49300909,1.8e-06,2]
[426704351,1782751926000,200.0,5e-05,30]
[426704357,1782751927000,250.0,1.98e-06,2]
[426704356,1782751927000,500.0,0.00010193,2]
[426704358,1782751927000,250.0,2.59e-05,2]
[426704360,1782751929000,988.01819093,0.000262,120]
[426704359,1782751929000,3000.0,0.000262,120]
[426704362,1782751932000,295.65866781,0.00013822,7]
[426704361,1782751932000,197.10577852,0.00013054,7]
[426704363,1782751953000,-6748.37394605,0.0001342,2]
[426704364,1782751954000,2500.0,0.00030137,120]
[426704365,1782751966000,-6748.37394605,0.0001342,2]
[426704366,1782751972000,-9000000.0,0.00037534,30]
[426704367,1782751976000,-9000000.0,0.00037534,30]
[426704368,1782751980000,-9000000.0,0.00037534,30]
[426704369,1782751982000,-9000000.0,0.00037534,30]
[426704370,1782751986000,-9000000.0,0.00037534,30]
[426704371,1782751989000,-9000000.0,0.00037534,30]
[426704372,1782751992000,182.27687054,0.0001262,2]
[426704374,1782751995000,1125.582943,0.00025,120]
[426704373,1782751995000,1125.582943,0.0002,120]
[426704375,1782751996000,-9000000.0,0.00037534,30]
[426704376,1782752000000,-9000000.0,0.00037534,30]
[426704377,1782752003000,-9000000.0,0.00037534,30]
[426704378,1782752006000,-9000000.0,0.00037534,30]
[426704379,1782752009000,-1533.84,0.00037522,120]
[426704380,1782752009000,-1533.98,0.00037522,120]
[426704381,1782752009000,-8996932.18,0.00037522,30]
[426704382,1782752010000,2500.0,0.00030137,120]
[426704384,1782752012000,-8999120.54,0.00037522,30]
[426704383,1782752012000,-879.46,0.00037522,120]
[426704386,1782752069000,1011.86624107,0.0001075,30]
[426704387,1782752071000,2500.0,0.00030137,120]
[426704388,1782752095000,274.0669791,0.00013438,7]
[426704389,1782752130000,2500.0,0.00030137,120]
[426704390,1782752170000,602.84615181,0.0001262,2]
[426704391,1782752171000,303.63676421,0.00012352,2]
[426704392,1782752191000,2500.0,0.00030137,120]
[426704394,1782752228000,187.22,0.00012657,2]
[426704396,1782752250000,2500.0,0.00030137,120]
[426704398,1782752270000,200.0,0.0001313,7]
[426704399,1782752275000,3646.855999,0.00012636,2]
[426704403,1782752293000,200.0,0.00012527,2]
[426704404,1782752304000,765.461562,0.0002,120]
[426704406,1782752305000,1254.49,0.00012527,2]
[426704405,1782752305000,765.461562,0.00025,120]
[426704407,1782752311000,2500.0,0.00030137,120]
[426704408,1782752312000,161.73,0.00012479,2]
[426704409,1782752323000,276.20251352,0.0001116,30]
[426704416,1782752329000,-275.82964967,0.00037517,60]
[426704410,1782752329000,-1386966.00464152,0.00037517,30]
[426704411,1782752329000,-148220.88415247,0.00037517,30]
[426704413,1782752329000,-157965.43412968,0.00037517,30]
[426704412,1782752329000,-61071.76148001,0.00037517,30]
[426704414,1782752329000,-260425.79415726,0.00037517,30]
[426704415,1782752329000,-487.0,0.00037517,60]
[426704417,1782752329000,-617.0,0.00037517,30]
[426704421,1782752329000,-518.5084604,0.00037517,30]
[426704420,1782752329000,-10000.0,0.00037517,50]
[426704418,1782752329000,-193.50216028,0.00037517,30]
[426704426,1782752329000,-178.32166604,0.00037517,30]
[426704422,1782752329000,-180.79297254,0.00037517,30]
[426704423,1782752329000,-1945.07479056,0.00037517,30]
[426704425,1782752329000,-154.6281261,0.00037517,60]
[426704424,1782752329000,-481.20497082,0.00037517,30]
[426704419,1782752329000,-154.45554414,0.00037517,30]
[426704428,1782752330000,-157.71185615,0.00037517,30]
[426704427,1782752330000,-302.306692,0.00037517,30]
[426704429,1782752330000,-632.0,0.00037517,30]
[426704430,1782752330000,-484.0,0.00037517,60]
[426704433,1782752330000,-164.94102709,0.00037517,60]
[426704432,1782752330000,-8570.0420677,0.00037517,60]
[426704434,1782752330000,-50000.0,0.00037517,33]
[426704431,1782752330000,-68714.632064,0.00037517,60]
[426704435,1782752330000,-964.04430665,0.00037517,30]
[426704437,1782752330000,-1000000.0,0.00037517,90]
[426704438,1782752330000,-1000000.0,0.00037517,30]
[426704439,1782752330000,-1000000.0,0.00037517,30]
[426704440,1782752330000,-1000000.0,0.00037517,30]
[426704441,1782752330000,-1000000.0,0.00037517,30]
[426704442,1782752330000,-1238160.12508492,0.00037517,30]
[426704436,1782752330000,-602014.0,0.00037517,60]
[426704443,1782752335000,-7306298.44949167,0.00037517,30]
[426704444,1782752335000,-1693701.55050833,0.00037517,30]
[426704451,1782752339000,-7182.44638895,0.00037517,31]
[426704452,1782752339000,-1888010.21568697,0.00037517,120]
[426704450,1782752339000,-50000.0,0.00037517,47]
[426704453,1782752339000,-213.65,0.00037517,30]
[426704446,1782752339000,-313275.30801049,0.00037517,60]
[426704448,1782752339000,-50000.0,0.00037517,45]
[426704449,1782752339000,-50000.0,0.00037517,46]
[426704445,1782752339000,-1392558.3768262,0.00037517,30]
[426704447,1782752339000,-50000.0,0.00037517,44]
[426704454,1782752339000,-158.86,0.00037517,30]
[426704461,1782752339000,-1000.0,0.00037517,30]
[426704457,1782752339000,-500.0,0.00037517,120]
[426704455,1782752339000,-728.06,0.00037517,120]
[426704464,1782752339000,-227.71833178,0.00037517,120]
[426704463,1782752339000,-500.0,0.00037517,120]
[426704462,1782752339000,-184.0813401,0.00037517,120]
[426704465,1782752339000,-311.0,0.00037517,120]
[426704459,1782752339000,-410.67978202,0.00037517,120]
[426704458,1782752339000,-500.0,0.00037517,120]
[426704456,1782752339000,-500.0,0.00037517,120]
[426704460,1782752339000,-151.0,0.00037517,120]
[426704477,1782752340000,-275.10837321,0.00037517,120]
[426704483,1782752340000,-212.0,0.00037517,120]
[426704482,1782752340000,-233.0,0.00037517,120]
[426704481,1782752340000,-164.5992954,0.00037517,120]
[426704479,1782752340000,-217.40794199,0.00037517,120]
[426704478,1782752340000,-197.83798938,0.00037517,120]
[426704476,1782752340000,-181.70493848,0.00037517,120]
[426704475,1782752340000,-328.0,0.00037517,120]
[426704471,1782752340000,-306.3224014,0.00037517,120]
[426704473,1782752340000,-154.16889586,0.00037517,120]
[426704472,1782752340000,-231.400254,0.00037517,120]
[426704484,1782752340000,-212.1769609,0.00037517,120]
[426704470,1782752340000,-203.81691101,0.00037517,120]
[426704468,1782752340000,-182.0,0.00037517,120]
[426704469,1782752340000,-177.66245896,0.00037517,120]
[426704467,1782752340000,-287.02,0.00037517,120]
[426704466,1782752340000,-180.75780708,0.00037517,120]
[426704474,1782752340000,-280.90823086,0.00037517,120]
[426704485,1782752340000,-291.11809523,0.00037517,120]
[426704480,1782752340000,-182.07012062,0.00037517,120]
[426704486,1782752340000,-169.00329226,0.00037517,120]
[426704487,1782752340000,-500.0,0.00037517,120]
[426704505,1782752340000,-525.89142147,0.00037517,120]
[426704504,1782752340000,-217.56319406,0.00037517,120]
[426704503,1782752340000,-384.71538297,0.00037517,120]
[426704502,1782752340000,-172.36910629,0.00037517,120]
[426704501,1782752340000,-160.01800713,0.00037517,120]
[426704500,1782752340000,-173.98713015,0.00037517,120]
[426704498,1782752340000,-202.13745379,0.00037517,120]
[426704497,1782752340000,-251.131502,0.00037517,120]
[426704506,1782752340000,-399.19702548,0.00037517,120]
[426704496,1782752340000,-253.68726405,0.00037517,120]
[426704499,1782752340000,-272.60634529,0.00037517,120]
[426704490,1782752340000,-625.64102039,0.00037517,120]
[426704489,1782752340000,-152.23554427,0.00037517,120]
[426704491,1782752340000,-191.78765724,0.00037517,120]
[426704488,1782752340000,-171.78281877,0.00037517,120]
[426704493,1782752340000,-181.71155166,0.00037517,120]
[426704494,1782752340000,-832.77817907,0.00037517,120]
[426704495,1782752340000,-488.96771717,0.00037517,120]
[426704492,1782752340000,-500.0,0.00037517,120]
[426704515,1782752341000,-239.00582684,0.00037517,120]
[426704523,1782752341000,-280.0,0.00037517,120]
[426704521,1782752341000,-170.30570487,0.00037517,120]
[426704517,1782752341000,-238.79434385,0.00037517,120]
[426704518,1782752341000,-158.84639718,0.00037517,120]
[426704520,1782752341000,-446.8084051,0.00037517,120]
[426704519,1782752341000,-161.54189805,0.00037517,120]
[426704514,1782752341000,-212.78355711,0.00037517,120]
[426704511,1782752341000,-191.45798414,0.00037517,120]
[426704513,1782752341000,-154.58159797,0.00037517,120]
[426704512,1782752341000,-477.56698423,0.00037517,120]
[426704510,1782752341000,-251.51611706,0.00037517,120]
[426704509,1782752341000,-158.31136605,0.00037517,120]
[426704508,1782752341000,-166.21096627,0.00037517,120]
[426704507,1782752341000,-150.95772527,0.00037517,120]
[426704524,1782752341000,-164.4054607,0.00037517,60]
[426704516,1782752341000,-179.87018236,0.00037517,120]
[426704522,1782752341000,-168.62052538,0.00037517,120]
[426704533,1782752341000,-193.86992427,0.00037517,120]
[426704528,1782752341000,-300.31224634,0.00037517,120]
[426704543,1782752341000,-500.0,0.00037517,120]
[426704542,1782752341000,-504.45769856,0.00037517,120]
[426704540,1782752341000,-516.35587481,0.00037517,120]
[426704541,1782752341000,-157.45814057,0.00037517,120]
[426704539,1782752341000,-218.21478629,0.00037517,120]
[426704538,1782752341000,-278.80375903,0.00037517,120]
[426704536,1782752341000,-203.82141333,0.00037517,120]
[426704537,1782752341000,-335.16430571,0.00037517,120]
[426704525,1782752341000,-185.86941841,0.00037517,120]
[426704535,1782752341000,-248.49068086,0.00037517,120]
[426704532,1782752341000,-159.08271991,0.00037517,120]
[426704544,1782752341000,-610.985208,0.00037517,120]
[426704530,1782752341000,-306.18436594,0.00037517,120]
[426704531,1782752341000,-206.94912464,0.00037517,120]
[426704529,1782752341000,-324.82923321,0.00037517,120]
[426704527,1782752341000,-177.76764412,0.00037517,120]
[426704526,1782752341000,-209.07151013,0.00037517,120]
[426704534,1782752341000,-254.54280312,0.00037517,120]
[426704561,1782752342000,-642.95544455,0.00037517,120]
[426704558,1782752342000,-218.15720229,0.00037517,120]
[426704557,1782752342000,-392.84448187,0.00037517,120]
[426704555,1782752342000,-166.61827834,0.00037517,120]
[426704556,1782752342000,-1431.508,0.00037517,120]
[426704551,1782752342000,-298.50923149,0.00037517,120]
[426704554,1782752342000,-150.3042984,0.00037517,120]
[426704549,1782752342000,-315.18445981,0.00037517,120]
[426704552,1782752342000,-623.52411593,0.00037517,120]
[426704550,1782752342000,-500.0,0.00037517,120]
[426704560,1782752342000,-166.13010766,0.00037517,120]
[426704547,1782752342000,-158.94517147,0.00037517,120]
[426704548,1782752342000,-186.19089882,0.00037517,120]
[426704546,1782752342000,-231.7113248,0.00037517,120]
[426704545,1782752342000,-179.00624102,0.00037517,120]
[426704553,1782752342000,-249.65714769,0.00037517,90]
[426704564,1782752342000,-293.51824115,0.00037517,120]
[426704559,1782752342000,-439.999999,0.00037517,120]
[426704565,1782752342000,-154.41022622,0.00037517,120]
[426704581,1782752342000,-210.39121625,0.00037517,120]
[426704577,1782752342000,-156.70648756,0.00037517,120]
[426704579,1782752342000,-1888.71,0.00037517,120]
[426704580,1782752342000,-194.66898091,0.00037517,120]
[426704578,1782752342000,-220.92617693,0.00037517,120]
[426704576,1782752342000,-265.84317057,0.00037517,120]
[426704575,1782752342000,-561.93720299,0.00037517,120]
[426704574,1782752342000,-259.8868,0.00037517,120]
[426704562,1782752342000,-210.53826569,0.00037517,120]
[426704572,1782752342000,-500.0,0.00037517,120]
[426704570,1782752342000,-500.0,0.00037517,120]
[426704571,1782752342000,-507.39046537,0.00037517,120]
[426704568,1782752342000,-500.0,0.00037517,120]
[426704569,1782752342000,-195.04572421,0.00037517,120]
[426704566,1782752342000,-206.20815621,0.00037517,120]
[426704567,1782752342000,-205.02389277,0.00037517,120]
[426704563,1782752342000,-503.00927083,0.00037517,120]
[426704573,1782752342000,-500.0,0.00037517,120]